bitfinex-derivatives/quotes_ETHF0:USTF0_20251028
["timestamp","ask_amount","ask_price","bid_price","bid_amount"]
[1761644455720,0.7895,4111.1,4111.0,1.21979]
[1761644456115,0.7895,4111.1,4111.0,0.7819]
[1761644459121,0.7895,4111.1,4111.0,1.21979]
[1761644459318,0.5616,4111.1,4111.0,1.34849]
[1761644464729,0.5616,4111.1,4111.0,0.7819]
[1761644464928,0.7905,4111.1,4111.0,1.21978]
[1761644466821,0.7905,4111.1,4111.0,0.2217]
[1761644467017,0.7595,4110.9,4110.5,0.338]
[1761644467232,1.19742,4110.6,4110.5,0.2161]
[1761644467419,0.7595,4110.6,4110.5,0.5541]
[1761644467825,0.7595,4110.6,4110.5,1.20514]
[1761644468931,0.7595,4110.6,4110.5,0.7672]
[1761644469629,0.7595,4110.6,4110.5,1.20514]
[1761644471832,0.7595,4110.6,4110.5,0.7672]
[1761644472430,0.7595,4110.6,4110.5,1.20514]
[1761644474034,0.5439,4110.6,4110.5,1.33044]
[1761644474335,0.3235,4110.9,4110.8,1.2051]
[1761644474968,0.5439,4110.9,4110.8,1.2051]
[1761644475727,0.5439,4111.1,4111.0,0.8925]
[1761644476027,0.5439,4111.1,4111.0,1.33038]
[1761644477030,0.3235,4111.3,4111.2,0.65396]
[1761644477229,0.3235,4111.3,4111.2,0.86706]
[1761644477833,0.3235,4111.3,4111.2,1.20506]
[1761644478930,0.65823,4111.5,4111.2,1.20506]
[1761644479135,0.3235,4111.4,4111.3,1.20505]
[1761644479535,0.5439,4111.4,4111.3,1.20505]
[1761644481533,0.7595,4111.4,4111.3,0.2161]
[1761644481832,0.7595,4111.2,4111.1,0.99197]
[1761644482137,0.7595,4111.2,4111.1,1.20507]
[1761644482734,0.7595,4111.2,4111.1,5.10307]
[1761644486335,0.7595,4111.2,4111.1,4.6652]
[1761644487039,0.7595,4111.2,4111.1,5.10306]
[1761644488440,0.5439,4111.2,4111.1,5.10306]
[1761644488734,0.5439,4111.4,4111.3,1.20504]
[1761644489233,0.3235,4111.7,4111.6,0.338]
[1761644489438,0.3235,4111.7,4111.6,0.7672]
[1761644489839,0.5439,4111.7,4111.6,0.7672]
[1761644490031,0.5439,4111.7,4111.6,1.20501]
[1761644490233,0.32576235,4111.8,4111.7,0.7672]
[1761644490740,0.32576235,4111.8,4111.7,1.205]
[1761644490941,0.54616235,4111.8,4111.7,1.205]
[1761644491239,0.00226235,4111.8,4111.7,1.205]
[1761644492540,0.00226235,4111.8,4111.7,5.103]
[1761644494643,0.00226235,4111.8,4111.7,4.6652]
[1761644494845,0.32966235,4111.8,4111.7,5.103]
[1761644495235,0.00226235,4111.8,4111.7,5.103]
[1761644502552,0.5624,4112.8,4112.7,0.7621]
[1761644503448,1.00008,4112.8,4112.7,0.7621]
[1761644503644,1.23321014,4112.8,4112.7,0.76479511]
[1761644504250,1.23321014,4112.8,4112.7,0.00269511]
[1761644505146,1.23321014,4112.8,4112.7,0.21499511]
[1761644505752,1.23321014,4112.8,4112.7,0.00269511]
[1761644518076,1.82300616,4112.8,4112.7,0.00269511]
[1761644521272,42.62300616,4112.8,4112.7,0.00269511]
[1761644526981,1.38532616,4112.8,4112.7,0.98638511]
[1761644527177,0.02433014,4112.8,4112.7,1.20498511]
[1761644527475,1.01131014,4112.8,4112.7,1.20498511]
[1761644528079,1.22871014,4112.8,4112.7,1.20498511]
[1761644528275,1.81976782,4112.8,4112.7,0.76729511]
[1761644528476,1.81976782,4112.8,4112.7,0.00269511]
[1761644529375,42.61976782,4112.8,4112.7,0.00269511]
[1761644536886,42.61976782,4112.8,4112.7,0.21209511]
[1761644538386,42.61976782,4112.8,4112.7,0.53239511]
[1761644538886,42.61976782,4112.8,4112.7,0.00269511]
[1761644544893,42.61976782,4112.8,4112.7,0.21209511]
[1761644545592,42.61976782,4112.8,4112.7,0.53239511]
[1761644546592,42.61976782,4112.8,4112.7,0.74739511]
[1761644546990,42.61976782,4112.8,4112.7,0.21209511]
[1761644547394,42.61976782,4112.8,4112.7,0.00269511]
[1761644547988,42.61976782,4112.8,4112.7,0.21209511]
[1761644548193,1.81976782,4112.8,4112.7,0.21209511]
[1761644548394,1.81976782,4112.8,4112.7,0.53239511]
[1761644548797,1.81976782,4112.8,4112.7,1.18508511]
[1761644549093,1.38208782,4112.8,4112.7,1.18508511]
[1761644549795,0.57363014,4112.8,4112.7,1.18508511]
[1761644550397,0.79103014,4112.8,4112.7,1.18508511]
[1761644551294,1.22871014,4112.8,4112.7,0.74739511]
[1761644551595,1.22871014,4112.8,4112.7,1.18508511]
[1761644552098,0.79103014,4112.8,4112.7,1.18508511]
[1761644552990,0.86389681,4113.9,4113.5,0.4376]
[1761644553191,0.87167,4113.9,4113.8,0.7447]
[1761644553391,1.45973654,4113.9,4113.8,0.7447]
[1761644553986,1.46285811,4113.9,4113.8,0.7447]
[1761644554402,0.21982157,4113.9,4113.8,1.18228]
[1761644554699,0.44069157,4113.9,4113.8,1.18228]
[1761644554999,0.44069157,4113.9,4113.8,0.7447]
[1761644555202,0.66669157,4113.9,4113.8,1.18228]
[1761644555392,0.66669157,4113.9,4113.8,0.7447]
[1761644556104,1.22009157,4113.9,4113.8,0.3203]
[1761644556293,1.22009157,4113.9,4113.8,0.5304]
[1761644556494,1.22009157,4113.9,4113.8,0.7391]
[1761644556792,0.44069157,4113.9,4113.8,0.7391]
[1761644557002,0.00312157,4113.9,4113.8,1.17668]
[1761644560206,0.00312157,4113.9,4113.8,1.17668]
[1761644564496,0.43747,4114.9,4114.6,0.3211]
[1761644564699,0.7794,4115.6,4115.5,0.5312]
[1761644564904,1.21679,4115.6,4115.5,0.5312]
[1761644565201,42.01679,4115.6,4115.5,0.5312]
[1761644565603,42.01876285,4115.6,4115.5,0.5312]
[1761644566400,42.01876285,4115.6,4115.5,0.8673]
[1761644567804,41.67426285,4115.6,4115.5,0.8673]
[1761644568008,40.80197285,4115.6,4115.5,1.3047]
[1761644568301,0.00197285,4115.6,4115.5,1.3047]
[1761644569799,0.66536285,4115.6,4115.5,1.3047]
[1761644570406,0.22797285,4115.6,4115.5,1.3047]
[1761644572302,0.00197285,4115.6,4115.5,1.3047]
[1761644573211,0.6633,4116.5,4116.4,0.7399]
[1761644573408,41.4633,4116.5,4116.4,0.7399]
[1761644573604,41.4633,4116.5,4116.2,0.43732]
[1761644573605,0.226,4117.4,4117.0,0.1274]
[1761644573806,0.43708,4118.6,4117.6,0.3211]
[1761644574003,0.3445,4118.4,4117.7,0.3211]
[1761644574209,0.3445,4118.4,4117.8,0.7399]
[1761644574210,0.7794,4117.9,4117.8,0.7399]
[1761644574703,0.78255686,4118.4,4118.2,0.3211]
[1761644574910,0.43805686,4118.4,4118.3,0.7399]
[1761644575106,0.00315686,4118.4,4118.3,0.7399]
[1761644575404,0.78255686,4118.4,4118.3,0.7399]
[1761644575598,0.78255686,4118.4,4118.0,0.1274]
[1761644575599,0.43805686,4118.4,4118.1,0.3211]
[1761644575805,0.7794,4118.2,4118.1,0.3211]
[1761644576202,0.7794,4118.2,4118.1,0.7399]
[1761644576406,0.34765686,4118.4,4118.3,0.5312]
[1761644576610,0.57365686,4118.4,4118.3,0.7399]
[1761644577504,0.78255686,4118.4,4118.3,0.7399]
[1761644577704,0.78255686,4118.4,4118.3,0.3211]
[1761644578212,0.78255686,4118.4,4118.3,0.5312]
[1761644578407,0.43805686,4118.4,4118.3,0.7399]
[1761644578712,0.7794,4118.2,4118.1,0.3211]
[1761644579010,0.226,4118.2,4118.1,0.7399]
[1761644579404,0.00315686,4118.4,4118.3,0.5312]
[1761644580011,0.00315686,4118.4,4118.3,0.7399]
[1761644580309,0.78255686,4118.4,4118.3,0.7399]
[1761644580611,0.00315686,4118.4,4118.3,0.7399]
[1761644585217,0.00315686,4118.4,4118.3,3.91500375]
[1761644585708,0.748,4119.6,4119.5,0.9211]
[1761644586117,41.548,4119.6,4119.5,0.9211]
[1761644586710,41.55106376,4119.6,4119.5,0.9211]
[1761644587010,41.98802376,4119.6,4119.5,0.9211]
[1761644587215,41.98802376,4119.6,4119.5,0.7933]
[1761644587416,41.98802376,4119.6,4119.5,0.5755]
[1761644587815,41.55106376,4119.6,4119.5,1.36127]
[1761644588120,0.42596376,4119.6,4119.5,1.36127]
[1761644588313,0.21506376,4119.6,4119.5,1.36127]
[1761644588515,0.00306376,4119.6,4119.5,1.36127]
[1761644591020,0.43676376,4119.6,4119.5,1.36127]
[1761644591910,0.43676376,4119.6,4119.2,0.3417]
[1761644592113,0.7465,4119.3,4119.2,0.86721]
[1761644592315,0.4337,4119.3,4119.2,0.86721]
[1761644592510,0.4337,4119.3,4119.2,1.20891]
[1761644592924,0.4337,4119.3,4119.2,0.7719]
[1761644593123,0.4337,4119.3,4119.2,1.20891]
[1761644595625,0.2208,4119.3,4119.2,1.20891]
[1761644595824,0.53666376,4119.6,4119.5,1.34347]
[1761644596021,0.74956376,4119.6,4119.5,1.34347]
[1761644596325,1.18652376,4119.6,4119.5,0.5577]
[1761644596819,0.74956376,4119.6,4119.5,0.9065]
[1761644597127,0.43676376,4119.6,4119.5,1.34347]
[1761644597320,1.18652376,4119.6,4119.5,0.9065]
[1761644597723,0.74956376,4119.6,4119.5,0.9065]
[1761644598022,0.43676376,4119.6,4119.5,1.34347]
[1761644598223,0.00306376,4119.6,4119.5,1.34347]
[1761644598924,0.22386376,4119.6,4119.5,1.34347]
[1761644599426,0.74956376,4119.6,4119.5,1.34347]
[1761644600729,0.4367,4122.1,4121.5,0.6923]
[1761644601033,1.31541514,4122.0,4121.9,0.3417]
[1761644601226,0.2208,4121.2,4121.1,0.867]
[1761644601525,0.4337,4121.2,4121.1,0.867]
[1761644601728,0.00291873,4121.2,4121.1,1.21143592]
[1761644602231,0.4337,4121.8,4121.7,0.7719]
[1761644602428,0.2208,4121.8,4121.7,0.7719]
[1761644603329,0.22277712,4121.8,4121.7,0.7719]
[1761644604328,0.00197712,4121.8,4121.7,0.7719]
[1761644605324,0.00197712,4121.8,4121.5,0.1346]
[1761644605325,0.2208,4122.6,4122.5,0.43665]
[1761644605532,1.2959849,4124.5,4123.9,0.3417]
[1761644605719,1.2959849,4124.5,4123.5,0.1346]
[1761644605720,0.3128,4123.9,4123.6,0.3417]
[1761644605923,0.7465,4123.2,4123.1,0.7719]
[1761644606330,0.74830351,4123.2,4123.1,0.7719]
[1761644607230,0.5336,4123.8,4123.7,0.216]
[1761644607431,0.7465,4123.8,4123.7,0.5577]
[1761644607625,0.7465,4123.8,4123.7,0.7719]
[1761644607937,0.5336,4124.6,4124.5,0.5577]
[1761644608132,0.2208,4124.6,4124.5,0.9065]
[1761644608328,0.00306139,4124.6,4124.5,0.90881052]
[1761644608523,0.43676139,4124.6,4124.5,0.90881052]
[1761644608724,41.54956139,4124.6,4124.5,0.00231052]
[1761644611731,41.54956139,4124.6,4124.5,0.56001052]
[1761644611935,41.54956139,4124.6,4124.5,0.77421052]
[1761644612123,41.54956139,4124.6,4124.5,0.00231052]
[1761644612835,49.54956139,4124.6,4124.5,0.00231052]
[1761644613027,41.54956139,4124.6,4124.5,0.00231052]
[1761644617239,41.54956139,4124.6,4123.8,0.3291]
[1761644617240,0.7882,4123.9,4123.8,0.3291]
[1761644617832,0.7882,4123.9,4123.8,0.5443]
[1761644618234,0.7882,4123.9,4123.8,0.00184506]
[1761644618840,0.43573597,4124.6,4124.5,0.9032]
[1761644619440,41.23573597,4124.6,4124.5,0.9032]
[1761644620538,41.23573597,4124.6,4124.5,1.33965]
[1761644621642,41.45353597,4124.6,4124.5,0.3291]
[1761644622034,41.23573597,4124.6,4124.5,0.6747]
[1761644622439,41.23573597,4124.6,4124.5,0.9032]
[1761644622636,41.23573597,4124.6,4124.5,0.4595]
[1761644622839,0.6534,4124.1,4124.0,0.6747]
[1761644623138,0.4356,4124.1,4124.0,0.6747]
[1761644623344,0.2178,4124.1,4124.0,0.9032]
[1761644623737,0.2178,4124.1,4124.0,1.3397]
[1761644624545,0.4356,4124.1,4124.0,1.3397]
[1761644629946,0.4356,4124.1,4124.0,0.9032]
[1761644630145,0.6534,4123.9,4123.8,0.33094506]
[1761644630346,0.6534,4123.9,4123.8,0.54614506]
[1761644630640,0.4356,4123.9,4123.8,0.54614506]
[1761644630843,0.6534,4123.9,4123.8,0.54614506]
[1761644631042,0.00013597,4124.6,4124.5,0.56685]
[1761644631245,0.2178,4127.2,4126.3,0.2152]
[1761644631447,0.4356,4126.4,4126.3,0.2152]
[1761644631645,0.4356,4126.4,4126.3,0.5443]
[1761644632251,0.4373155,4126.4,4126.3,0.5443]
[1761644632548,0.4373155,4126.4,4126.3,0.7728]
[1761644634242,0.2195155,4126.4,4126.3,0.7728]
[1761644634644,0.0017155,4126.4,4126.3,0.7728]
[1761644634849,0.4373155,4126.4,4126.3,0.7728]
[1761644635448,0.2195155,4126.4,4126.3,0.7728]
[1761644636552,0.4373155,4126.4,4126.3,0.7728]
[1761644640558,0.4373155,4126.4,4126.3,1.20906]
[1761644640953,0.2178,4126.3,4126.1,0.3291]
[1761644641157,0.6534,4126.2,4126.1,0.76537]
[1761644641356,0.6534,4126.2,4126.1,0.98057]
[1761644641753,0.6534,4126.2,4126.1,0.76537]
[1761644642069,0.6534,4126.2,4126.1,0.98057]
[1761644642259,0.4356,4126.2,4126.1,1.20907]
[1761644642860,0.2398,4127.8,4127.2,0.3291]
[1761644643066,0.4356,4127.2,4127.1,0.3291]
[1761644643253,41.4534,4127.2,4127.1,0.3291]
[1761644643758,41.45628309,4127.2,4127.1,0.76772705]
[1761644644760,41.45628309,4127.2,4127.1,0.33155705]
[1761644645859,41.23848309,4127.2,4127.0,0.2112]
[1761644646062,0.3271,4127.0,4126.5,0.1304]
[1761644646358,0.3271,4127.0,4126.9,0.2112]
[1761644646359,0.4383,4127.0,4126.9,0.2112]
[1761644646862,0.7517,4127.0,4126.9,0.2112]
[1761644647163,0.7517,4127.0,4126.9,0.21318231]
[1761644648162,41.5517,4127.0,4126.9,0.21318231]
[1761644649659,41.6842,4127.0,4126.9,0.21318231]
[1761644650963,49.6842,4127.0,4126.9,0.21318231]
[1761644654057,49.6842,4127.0,4126.7,0.3342]
[1761644654058,41.6842,4127.0,4126.7,0.3342]
[1761644654366,0.7325,4126.9,4126.0,0.1304]
[1761644654762,40.8,4126.6,4126.0,0.1304]
[1761644655261,0.1325,4126.5,4126.0,0.13350433]
[1761644657165,40.8,4126.6,4126.0,0.00310433]
[1761644661171,0.87042234,4126.5,4126.0,0.00310433]
[1761644661972,0.87042234,4126.4,4126.0,0.00310433]
[1761644662365,0.87042234,4126.5,4126.0,0.00310433]
[1761644662868,0.87042234,4126.4,4126.0,0.00310433]
[1761644663074,0.87042234,4126.3,4126.0,0.00310433]
[1761644663266,0.87042234,4126.1,4126.0,0.00310433]
[1761644663462,41.67042234,4126.1,4126.0,0.00310433]
[1761644663766,40.8,4126.1,4126.0,0.00310433]
[1761644663967,48.8,4126.1,4124.8,1.30338691]
[1761644664167,0.87013667,4126.0,4124.8,0.43641]
[1761644664571,0.87013667,4125.9,4124.6,0.86697691]
[1761644664768,0.87013667,4125.8,4124.4,1.30343691]
[1761644665073,0.87013667,4125.6,4124.4,0.43946893]
[1761644665273,0.87013667,4125.6,4124.4,0.00300893]
[1761644665462,0.87013667,4125.5,4124.4,0.00300893]
[1761644665771,0.87013667,4125.2,4124.4,0.00300893]
[1761644666163,0.87013667,4125.4,4124.4,0.00300893]
[1761644666860,1.0658593,4125.4,4124.4,0.00300893]
[1761644667370,0.19572263,4125.4,4124.4,0.00300893]
[1761644667567,0.87013667,4125.5,4124.4,0.00300893]
[1761644668860,1.06490431,4125.5,4124.4,0.00300893]
[1761644669065,40.8,4125.1,4124.4,0.00300893]
[1761644677182,0.87013667,4125.2,4124.4,0.00300893]
[1761644677571,40.8,4124.5,4124.4,0.00300893]
[1761644686574,40.8,4124.5,4123.0,1.30357691]
[1761644686778,0.87013667,4124.9,4122.9,1.30359691]
[1761644686976,0.87013667,4124.8,4122.9,0.43661]
[1761644687186,40.8,4123.7,4122.7,0.86697691]
[1761644687389,40.8,4123.7,4122.5,1.30363691]
[1761644687680,40.80239586,4123.7,4122.6,0.43665]
[1761644687886,40.80239586,4123.7,4122.5,0.00302458]
[1761644692981,0.00239586,4123.7,4122.5,0.00302458]
[1761644693379,40.8,4123.1,4122.5,0.00302458]
[1761644694886,40.99563206,4123.1,4122.5,0.00302458]
[1761644697189,40.8,4123.1,4122.5,0.00302458]
[1761644700990,0.00239586,4123.7,4123.2,0.43658]
[1761644701985,0.00239586,4123.7,4123.3,0.43657]
[1761644702483,0.00239586,4123.7,4123.2,0.43658]
[1761644702895,0.00239586,4123.7,4123.3,0.43657]
[1761644703491,0.00239586,4123.7,4123.1,0.4366]
[1761644703893,0.00239586,4123.7,4122.7,0.86697691]
[1761644704195,0.00239586,4123.7,4122.8,0.43663]
[1761644705194,0.1347,4123.5,4123.0,0.4366]
[1761644705489,0.00239586,4123.7,4123.1,0.4366]
[1761644705695,0.32499586,4123.7,4122.9,1.09154]
[1761644705887,0.32499586,4123.7,4123.5,0.43655]
[1761644706185,0.1347,4124.5,4123.4,1.09142]
[1761644706391,0.3226,4124.4,4123.8,0.86697691]
[1761644706591,0.3226,4123.9,4123.8,0.86697691]
[1761644706799,0.8891,4123.5,4123.4,0.86697691]
[1761644707091,0.3226,4123.3,4123.2,1.30355691]
[1761644707291,0.4591,4123.5,4123.4,0.43656]
[1761644707494,0.46116289,4123.5,4123.4,0.43656]
[1761644707689,0.3226,4123.4,4123.3,1.30631893]
[1761644707887,0.5342,4123.4,4123.3,0.43657]
[1761644708292,0.3226,4123.4,4123.3,1.30631893]
[1761644708793,0.3226,4123.4,4123.3,0.86974893]
[1761644709090,0.3226,4123.3,4123.2,1.30632893]
[1761644709399,0.7526,4123.3,4123.2,0.86974893]
[1761644711698,0.43,4123.3,4123.1,0.4366]
[1761644711900,0.5342,4123.2,4123.1,0.4366]
[1761644712198,0.1365,4123.0,4122.9,1.73734051]
[1761644712495,0.6707,4123.0,4122.9,1.73734051]
[1761644712695,0.6707,4123.0,4122.9,0.43661]
[1761644712896,0.6707,4123.0,4122.9,1.73734051]
[1761644713593,0.6707,4123.0,4122.9,0.43661]
[1761644713793,0.3226,4122.8,4122.6,0.87076204]
[1761644713995,0.3226,4122.7,4122.6,0.43665]
[1761644714601,0.3226,4122.7,4122.6,1.30741204]
[1761644714907,0.3226,4122.7,4122.6,0.43665]
[1761644717300,0.3226,4122.6,4122.5,0.00302458]
[1761644717599,0.7526,4122.6,4122.5,0.43968458]
[1761644722206,41.5526,4122.6,4122.5,0.43968458]
[1761644724699,41.5526,4122.6,4122.5,1.74675595]
[1761644725504,41.5526,4122.6,4122.5,0.43968458]
[1761644725703,41.5526,4122.6,4122.5,1.74675595]
[1761644727512,41.5526,4122.6,4122.5,0.43968458]
[1761644733411,0.7526,4122.6,4122.5,0.43968458]
[1761644734515,0.3226,4122.6,4122.5,0.43968458]
[1761644736317,0.5514,4122.6,4122.5,0.43968458]
[1761644736912,0.775,4122.6,4122.5,0.43968458]
[1761644737720,0.775,4122.6,4122.5,4.33768458]
[1761644739417,0.775,4122.6,4122.5,6.08147232]
[1761644746133,0.775,4122.6,4122.5,4.33768458]
[1761644748128,0.5514,4122.6,4122.5,4.33768458]
[1761644749026,0.3226,4122.6,4122.5,4.33768458]
[1761644749728,0.1365,4123.0,4122.9,0.43662]
[1761644750316,0.6921,4123.0,4122.9,0.43662]
[1761644750730,0.4633,4123.0,4122.9,4.33462]
[1761644751323,0.6921,4123.0,4122.9,4.33462]
[1761644752023,0.9157,4123.0,4122.9,4.33462]
[1761644752932,0.4633,4123.0,4122.9,4.33462]
[1761644753229,0.4633,4123.0,4122.9,6.07922875]
[1761644753428,0.4633,4123.0,4122.9,4.33462]
[1761644755434,0.4633,4123.0,4122.9,6.07922875]
[1761644755631,0.6921,4123.0,4122.9,6.07922875]
[1761644755831,0.4633,4123.0,4122.9,6.07922875]
[1761644756837,0.4633,4123.0,4122.9,4.33462]
[1761644757334,0.4633,4123.0,4122.9,6.07861055]
[1761644758830,0.36736289,4123.5,4123.4,0.66456]
[1761644759036,0.59096289,4123.5,4123.4,1.19636]
[1761644759233,0.59096289,4123.5,4123.4,0.43656]
[1761644759433,0.59096289,4123.5,4123.4,1.74439342]
[1761644760132,0.59096289,4123.5,4123.4,1.97239342]
[1761644760837,0.91776289,4123.5,4123.4,1.97239342]
[1761644761533,0.91776289,4123.5,4123.4,1.74439342]
[1761644761730,0.91776289,4123.5,4123.4,1.30783342]
[1761644761932,0.3268,4123.4,4123.3,1.74440342]
[1761644762235,0.7792,4123.4,4123.3,1.97240342]
[1761644762439,41.1268,4123.4,4123.3,1.19637]
[1761644763030,0.00206289,4123.5,4123.4,0.97866]
[1761644763339,0.32886289,4123.5,4123.4,1.19636]
[1761644763540,0.55766289,4123.5,4123.4,1.19636]
[1761644764640,0.69096289,4123.5,4123.4,1.19636]
[1761644765239,0.90366289,4123.5,4123.4,1.19636]
[1761644765640,0.69096289,4123.5,4123.4,1.19636]
[1761644766042,0.90366289,4123.5,4123.4,1.19636]
[1761644766938,0.90366289,4123.5,4123.4,5.09436]
[1761644769146,0.90366289,4123.5,4123.4,4.78026]
[1761644769441,0.90366289,4123.5,4123.4,4.33456]
[1761644769633,0.90366289,4123.5,4123.4,5.20550569]
[1761644770233,0.90366289,4123.5,4123.4,3.898]
[1761644771144,41.70366289,4123.5,4123.4,3.898]
[1761644771945,0.2272,4123.0,4122.9,1.30750569]
[1761644772251,0.798,4122.8,4122.7,1.30750569]
[1761644772545,0.3407,4122.7,4122.6,1.30750569]
[1761644772746,0.798,4122.7,4122.6,1.30750569]
[1761644773341,0.798,4122.6,4122.5,0.00302458]
[1761644773541,0.798,4122.6,4122.5,0.87474072]
[1761644775242,0.798,4122.6,4122.5,0.00302458]
[1761644775742,41.598,4122.6,4122.5,0.00302458]
[1761644776650,41.598,4122.6,4122.5,0.66878458]
[1761644776858,41.598,4122.6,4122.5,0.89968458]
[1761644777257,41.598,4122.6,4122.5,0.23212458]
[1761644778358,41.598,4122.6,4122.5,0.66878458]
[1761644778957,41.598,4122.6,4122.5,0.00302458]
[1761644781959,41.598,4122.6,4122.5,0.46302458]
[1761644782260,41.598,4122.6,4122.5,0.23212458]
[1761644782664,41.598,4122.6,4122.5,0.00302458]
[1761644791166,0.798,4122.1,4122.0,0.16583]
[1761644792066,0.798,4122.1,4122.0,0.16897107]
[1761644796962,0.798,4122.1,4122.0,1.37808107]
[1761644796963,0.5679,4122.1,4122.0,1.37808107]
[1761644797161,0.3299,4122.4,4122.3,0.98057]
[1761644797366,0.3299,4122.4,4122.3,1.20907]
[1761644798563,0.548,4122.4,4122.3,1.20907]
[1761644799273,0.7639,4122.4,4122.3,0.87677]
[1761644799473,0.7639,4122.4,4122.3,0.66517]
[1761644800473,0.7639,4122.4,4122.3,0.87677]
[1761644800775,0.3299,4122.4,4122.3,2.51657569]
[1761644800978,0.548,4122.7,4122.6,0.98054]
[1761644801175,41.348,4122.7,4122.6,1.20904]
[1761644801377,41.348,4122.7,4122.6,0.87674]
[1761644802173,41.348,4122.7,4122.6,0.2285]
[1761644803482,41.348,4122.7,4122.6,0.66515]
[1761644808376,0.3544,4123.0,4122.9,1.20902]
[1761644808578,0.2181,4123.3,4123.2,0.7724]
[1761644808779,0.434,4123.3,4123.2,0.87669]
[1761644809080,0.7639,4123.3,4123.2,0.87669]
[1761644809584,0.1357,4123.0,4122.8,1.53633347]
[1761644809881,0.3299,4123.0,4122.9,1.20902]
[1761644810385,0.8996,4123.0,4122.9,0.66512]
[1761644813587,0.8996,4123.0,4122.9,0.87672]
[1761644814686,0.8996,4123.0,4122.9,1.20902]
[1761644817190,0.8996,4123.0,4122.9,0.87672]
[1761644817395,0.8996,4123.0,4122.9,0.43662]
[1761644818690,0.8996,4123.0,4122.9,0.66512]
[1761644821091,0.8996,4123.0,4122.9,0.43662]
[1761644821790,0.8996,4123.0,4122.9,0.87672]
[1761644821994,0.548,4123.0,4122.9,1.20902]
[1761644822290,0.3299,4123.0,4122.9,1.20902]
[1761644824488,0.35346289,4123.5,4123.4,1.19536]
[1761644824693,0.00206289,4123.5,4123.4,1.19536]
[1761644825287,0.31476289,4123.5,4123.4,2.50137012]
[1761644825487,0.31476289,4123.5,4123.4,1.19536]
[1761644826182,0.31476289,4123.5,4123.4,5.09336]
[1761644827385,0.88416289,4123.5,4123.4,5.20417977]
[1761644827592,0.88416289,4123.5,4123.4,3.898]
[1761644828190,0.88416289,4123.5,4123.4,4.33456]
[1761644828500,0.88416289,4123.5,4123.4,3.898]
[1761644829494,0.893,4123.0,4122.9,1.97369977]
[1761644831602,0.893,4123.0,4122.9,1.30617977]
[1761644831900,0.7626,4122.6,4122.5,1.30617977]
[1761644832102,0.7626,4122.6,4122.5,0.2309]
[1761644832290,41.5626,4122.6,4122.5,0.2309]
[1761644834102,41.5626,4122.6,4122.5,0.4553]
[1761644834302,41.3502,4122.6,4122.5,2.07427977]
[1761644834705,0.5502,4122.6,4122.5,0.7681]
[1761644835404,0.5502,4122.6,4122.5,1.20476]
[1761644837001,0.7626,4122.6,4122.5,0.66756]
[1761644837502,0.7626,4122.6,4122.5,0.89196]
[1761644838004,0.7626,4122.6,4122.5,2.19928867]
[1761644840407,0.7626,4122.6,4122.5,0.43666]
[1761644840703,0.7626,4122.6,4122.4,1.30732867]
[1761644840704,0.4429,4122.4,4122.2,1.30732867]
[1761644840904,0.7626,4122.3,4122.2,1.74401867]
[1761644841104,0.7626,4122.3,4122.2,1.97491867]
[1761644841304,41.5626,4122.3,4122.2,0.66759]
[1761644844712,41.5626,4122.3,4122.1,0.4367]
[1761644844915,0.7626,4122.2,4122.1,0.6676]
[1761644846616,0.7626,4122.2,4122.1,1.2048]
[1761644847632,0.7626,4122.2,4122.1,0.892]
[1761644847925,0.3197,4122.1,4122.0,0.16897107]
[1761644848125,0.7626,4122.1,4122.0,0.16897107]
[1761644848427,41.5626,4122.1,4122.0,0.16897107]
[1761644863835,0.7626,4122.1,4122.0,0.16897107]
[1761644864334,41.5626,4122.1,4122.0,0.16897107]
[1761644868235,42.08989618,4122.1,4122.0,0.16897107]
[1761644877237,0.9058,4121.0,4120.9,0.4381]
[1761644878142,41.7058,4121.0,4120.9,0.44053968]
[1761644882743,0.3267,4121.9,4121.4,0.3365]
[1761644882943,0.3623,4122.0,4121.4,0.3365]
[1761644882944,0.5506,4121.5,4121.4,0.7746]
[1761644883146,0.9058,4121.5,4121.4,0.4381]
[1761644883344,0.9058,4121.5,4121.4,0.7746]
[1761644883542,0.3267,4122.0,4121.9,0.7746]
[1761644883742,0.2239,4122.5,4122.4,0.7801]
[1761644883945,41.3791,4122.5,4122.4,0.4381]
[1761644884244,41.3791,4122.5,4122.4,0.2296]
[1761644884648,41.3791,4122.5,4122.4,0.4557]
[1761644885450,0.5791,4122.5,4122.1,0.2182]
[1761644885752,0.7752,4121.6,4121.5,1.30785233]
[1761644885959,0.7752,4121.6,4121.5,1.52605233]
[1761644886250,0.7752,4121.6,4121.5,0.2182]
[1761644890155,0.7423,4121.4,4121.3,5.41885233]
[1761644890850,0.3167,4121.3,4121.0,5.20585233]
[1761644891048,0.7423,4121.1,4121.0,5.41885233]
[1761644891548,41.5423,4121.1,4121.0,5.85567233]
[1761644891751,40.8,4121.1,4121.0,6.49167233]
[1761644892053,0.7423,4121.9,4121.8,0.7641]
[1761644892242,0.7423,4121.9,4121.8,0.4293]
[1761644892550,0.3167,4121.8,4121.5,1.20086]
[1761644892756,0.7423,4121.6,4121.5,1.20086]
[1761644892949,0.559,4122.0,4121.9,0.7641]
[1761644893151,41.359,4122.0,4121.9,0.7641]
[1761644893451,41.6757,4122.0,4121.9,0.7641]
[1761644894154,41.6757,4122.0,4121.9,0.4293]
[1761644897854,0.7423,4121.6,4121.5,3.898]
[1761644901754,0.7423,4121.6,4121.4,0.43677]
[1761644902063,0.8675,4121.5,4121.4,0.213]
[1761644905064,0.8675,4121.5,4121.3,3.898]
[1761644905361,0.7423,4121.4,4121.3,4.33479]
[1761644905554,0.7423,4121.4,4121.3,4.54779]
[1761644907558,0.526,4121.4,4121.3,5.09889]
[1761644907752,0.7423,4121.4,4121.3,4.76409]
[1761644909158,0.7423,4121.4,4121.3,5.09889]
[1761644909355,0.526,4121.4,4121.3,5.09889]
[1761644909862,0.7423,4121.4,4121.3,5.09889]